bitfinex/quotes_ETHUSD_20250720
["timestamp","ask_amount","ask_price","bid_price","bid_amount"]
[1753030102858,0.24305416,3806.2,3805.9,2.62745079]
[1753030103036,0.24305416,3806.1,3805.8,0.001]
[1753030103254,4.495,3806.4,3805.8,0.001]
[1753030103255,0.24305416,3806.0,3805.8,0.001]
[1753030103579,4.495,3805.9,3805.8,0.001]
[1753030103715,5.49317016,3805.9,3805.8,0.001]
[1753030104347,5.92177016,3805.9,3805.8,0.001]
[1753030104553,5.49317016,3805.9,3805.8,0.001]
[1753030104817,4.73807814,3805.9,3805.8,0.001]
[1753030105223,7.79417754,3805.9,3805.8,0.001]
[1753030105437,5.28807814,3805.9,3805.8,0.001]
[1753030105752,0.24307814,3805.9,3805.8,0.001]
[1753030105938,4.73807814,3805.9,3805.8,0.001]
[1753030106352,4.73816501,3805.9,3805.8,2.62856844]
[1753030106552,0.24316501,3805.9,3805.8,3.09826844]
[1753030106747,4.495,3806.0,3805.9,2.6274994]
[1753030106948,0.55,3806.8,3806.3,2.62715776]
[1753030107151,4.91459457,3806.7,3805.8,0.4707]
[1753030107471,4.73714457,3806.6,3806.5,2.62703527]
[1753030107668,0.24314457,3806.6,3806.5,2.62703527]
[1753030107833,4.73814457,3806.6,3806.5,2.62703527]
[1753030108033,4.73825735,3806.6,3806.5,2.62703527]
[1753030108230,4.73825735,3806.6,3806.4,2.62713316]
[1753030108436,0.24325735,3806.5,3806.4,2.62713316]
[1753030108731,0.24325735,3806.5,3806.4,3.09543316]
[1753030109444,0.37445735,3806.5,3806.4,2.62713316]
[1753030109840,0.37445735,3806.5,3805.8,3.001]
[1753030110068,0.24325735,3806.4,3806.3,2.62722328]
[1753030110765,0.24325735,3806.4,3806.3,3.09552328]
[1753030110969,0.24325735,3806.4,3806.3,3.88722328]
[1753030111178,0.24325735,3806.4,3805.9,0.7917]
[1753030111378,0.24325735,3806.3,3806.2,2.62722602]
[1753030112338,3.45149855,3807.8,3807.1,2.6266224]
[1753030112661,0.1312,3806.9,3806.8,2.62687821]
[1753030112863,0.1312,3806.9,3806.8,3.09517821]
[1753030113062,0.8253,3807.8,3806.8,3.09517821]
[1753030113063,0.8253,3807.8,3807.5,2.62637883]
[1753030113268,0.8253,3807.8,3807.3,2.6265268]
[1753030113269,4.493,3807.7,3807.3,2.62648469]
[1753030113462,4.493,3807.7,3806.8,1.26]
[1753030113463,0.1312,3807.3,3807.2,2.62660222]
[1753030113679,0.24409134,3808.0,3807.9,2.62611938]
[1753030113883,0.002,3808.1,3807.9,2.62611938]
[1753030113884,0.24609134,3808.1,3808.0,2.62605042]
[1753030114097,0.002,3808.1,3808.0,3.09435042]
[1753030114401,0.002,3808.1,3808.0,3.22555042]
[1753030114560,0.002,3808.1,3808.0,3.25181092]
[1753030114955,0.002,3808.1,3808.0,6.25181092]
[1753030115169,0.002,3808.1,3808.0,6.22555042]
[1753030115700,1e-08,3808.1,3808.0,11.51155042]
[1753030118290,1e-08,3808.1,3808.0,7.01955042]
[1753030118491,1e-08,3808.1,3808.0,11.51055042]
[1753030120207,1e-08,3808.1,3808.0,11.50855042]
[1753030121778,1e-08,3808.1,3808.0,7.01955042]
[1753030121985,1e-08,3808.1,3808.0,11.50855042]
[1753030123206,1e-08,3808.1,3808.0,11.50755042]
[1753030123408,1e-08,3808.1,3808.0,7.01955042]
[1753030123579,1e-08,3808.1,3808.0,12.05755042]
[1753030124294,0.24419735,3810.5,3809.7,3.8005]
[1753030124479,0.2441956,3810.4,3810.0,3.0]
[1753030124687,0.24419543,3810.6,3810.0,0.1312]
[1753030124884,0.24419543,3810.5,3810.0,2.62464278]
[1753030125094,0.37539543,3810.4,3810.3,2.62446526]
[1753030125315,0.1312,3810.4,3810.3,2.62446526]
[1753030126214,0.5954,3810.4,3810.1,2.62459129]
[1753030126423,2.62413706,3810.8,3809.2,2.62519871]
[1753030126424,0.4642,3810.3,3809.2,2.62519871]
[1753030126585,0.1312,3810.1,3809.7,3.0]
[1753030126784,0.1312,3810.1,3809.8,2.6248097]
[1753030126985,0.1312,3810.1,3809.9,2.62473116]
[1753030127920,0.5954,3810.1,3809.6,3.0]
[1753030128119,1.236,3810.1,3809.7,2.62482856]
[1753030128286,0.1312,3809.9,3809.7,2.62482856]
[1753030128488,0.1312,3809.9,3809.7,2.62485755]
[1753030128898,0.1312,3809.9,3809.8,2.6248097]
[1753030131130,0.7718,3810.5,3810.4,2.62439638]
[1753030132035,0.1312,3810.4,3810.3,2.62444794]
[1753030132204,0.26792,3810.4,3810.3,2.62444794]
[1753030132602,0.1312,3810.4,3810.3,2.62444794]
[1753030134510,0.1312,3810.4,3809.7,3.0]
[1753030134736,0.1312,3810.4,3810.2,2.62448137]
[1753030135138,0.4642,3810.3,3810.2,2.62448137]
[1753030135657,0.1312,3810.4,3810.3,2.62446526]
[1753030138229,0.5617,3810.4,3810.3,2.62446526]
[1753030138552,0.7565,3810.3,3809.8,2.6247739]
[1753030138724,0.82475279,3810.2,3809.3,0.1312]
[1753030138920,0.1312,3809.7,3809.3,0.1312]
[1753030139124,0.4305,3810.2,3809.2,2.62520435]
[1753030139125,0.1312,3809.4,3809.2,2.62520435]
[1753030139353,0.4305,3809.3,3809.1,2.62527725]
[1753030139558,0.1312,3809.4,3808.8,0.1312]
[1753030139776,0.7565,3809.8,3808.9,2.62538392]
[1753030139777,0.1312,3809.0,3808.9,2.62538392]
[1753030139989,0.1312,3809.0,3808.0,0.7527]
[1753030139990,0.4305,3809.0,3808.0,0.7527]
[1753030140195,0.1312,3808.7,3808.1,0.1322]
[1753030140466,0.1312,3808.2,3808.1,2.62698146]
[1753030140620,0.1312,3808.6,3808.2,2.6259125]
[1753030140828,0.1312,3808.2,3808.1,2.62691258]
[1753030141344,0.1312,3808.2,3808.1,0.001]
[1753030141550,0.1312,3808.2,3808.1,2.62698146]
[1753030141753,0.1312,3808.2,3808.1,0.001]
[1753030141930,0.1312,3808.2,3808.1,2.62698146]
[1753030141931,0.5617,3808.2,3808.1,2.62698146]
[1753030142130,0.1312,3808.2,3808.1,2.62698146]
[1753030142876,0.9603,3808.2,3808.1,0.001]
[1753030143161,0.9603,3808.2,3808.1,2.62698146]
[1753030143364,0.9603,3808.2,3808.1,0.001]
[1753030144132,1.3908,3808.2,3808.1,0.001]
[1753030144369,1.52988,3808.2,3808.1,0.001]
[1753030144741,4.1557925,3808.2,3808.1,0.001]
[1753030145246,1.52988,3808.2,3808.1,0.001]
[1753030145424,1.09938,3808.2,3808.1,0.001]
[1753030145625,0.1312,3808.2,3808.1,0.001]
[1753030145826,0.1312,3808.2,3808.1,2.62698146]
[1753030147230,0.1312,3808.2,3808.1,0.001]
[1753030147457,0.1312,3808.2,3808.1,2.62698146]
[1753030147787,0.1312,3808.2,3808.1,0.001]
[1753030147948,0.1312,3808.2,3808.1,2.62698146]
[1753030148150,0.1312,3808.2,3808.1,0.001]
[1753030148444,0.5617,3808.2,3808.1,0.001]
[1753030149358,0.88045984,3808.2,3808.1,0.001]
[1753030149528,3.50637234,3808.2,3808.1,0.001]
[1753030149864,1.69065984,3808.2,3808.1,0.001]
[1753030150165,3.9978125,3808.2,3808.1,0.001]
[1753030150472,1.3719,3808.2,3808.1,0.001]
[1753030150763,3.9978125,3808.2,3808.1,0.001]
[1753030150963,4.5478125,3808.2,3808.1,0.001]
[1753030151266,6.5107,3808.2,3808.1,0.001]
[1753030151424,9.2376825,3808.2,3808.1,0.001]
[1753030151626,10.65627,3808.2,3808.1,0.001]
[1753030152043,4.72,3808.2,3808.1,2.62698146]
[1753030152447,0.831,3809.1,3808.1,0.001]
[1753030152646,4.474,3809.0,3808.7,2.62552368]
[1753030152851,4.474,3809.0,3808.8,2.62549405]
[1753030153252,0.831,3809.1,3808.8,2.62546345]
[1753030153572,0.831,3809.1,3808.1,3.454]
[1753030153738,4.474,3809.4,3809.3,2.62515422]
[1753030153939,6.298,3810.8,3809.6,2.62490227]
[1753030153940,4.474,3809.9,3809.6,2.62490227]
[1753030154141,5.305,3810.1,3809.6,2.62488895]
[1753030154341,5.305,3810.1,3810.0,2.62467191]
[1753030154581,0.5305,3810.1,3810.0,2.62467191]
[1753030154776,1.2615,3810.6,3810.2,2.62453414]
[1753030154987,4.473,3810.5,3810.4,2.62439638]
[1753030155299,4.473,3810.5,3809.5,0.453]
[1753030155681,6.298,3810.8,3809.5,0.453]
[1753030155682,6.298,3810.8,3809.5,0.64843896]
[1753030155976,10.771,3810.8,3809.7,3.0]
[1753030156192,10.771,3810.8,3810.4,2.62436601]
[1753030156377,4.473,3810.8,3810.6,2.62424591]
[1753030156689,4.473,3810.8,3810.4,2.62432906]
[1753030156860,4.473,3810.8,3810.5,2.62432496]
[1753030157040,0.831,3811.1,3810.6,2.62423306]
[1753030157245,4.472,3811.0,3810.5,2.62431196]
[1753030157447,0.57355,3810.9,3810.5,2.62431196]
[1753030157759,0.57355,3810.9,3810.3,2.62440809]
[1753030157944,0.57355,3810.9,3809.8,0.453]
[1753030157945,0.57355,3810.9,3810.4,2.6243305]
[1753030158148,0.4305,3810.8,3810.3,2.62444635]
[1753030158491,0.57355,3810.9,3809.8,0.453]
[1753030158646,0.831,3811.1,3809.8,0.453]
[1753030158987,5.302,3811.1,3810.9,2.62399292]
[1753030159979,0.831,3811.1,3809.5,3.19543896]
[1753030160294,0.4305,3811.0,3809.9,3.0]
[1753030160588,1.00385,3811.0,3810.6,2.62424481]
[1753030161053,1.00385,3811.0,3810.4,2.62438828]
[1753030161249,1.00385,3811.0,3810.3,2.62446526]
[1753030161489,0.1312,3810.3,3810.0,0.453]
[1753030161694,0.1312,3810.3,3810.2,2.62453414]
[1753030162398,0.1312,3810.3,3810.1,2.62459351]
[1753030162693,0.1312,3810.3,3810.1,2.62455792]
[1753030162856,0.1312,3810.3,3810.2,2.62453414]
[1753030163052,0.4305,3810.6,3810.2,2.62453414]
[1753030163256,0.7359639,3810.5,3810.1,2.62458147]
[1753030163461,0.7359639,3810.5,3809.5,7.66274389]
[1753030163462,0.7359639,3810.5,3809.6,3.0]
[1753030163666,0.4305,3810.5,3810.1,2.62454801]
[1753030163882,0.4305,3810.5,3810.0,2.62465097]
[1753030164078,0.4305,3810.5,3810.1,2.62459939]
[1753030164492,0.4305,3810.5,3809.8,2.62479805]
[1753030164493,0.4305,3810.5,3810.2,2.62451684]
[1753030164870,0.4305,3810.5,3809.9,2.62473442]
[1753030165075,0.1312,3810.0,3809.6,3.0]
[1753030165274,0.1312,3810.0,3809.4,0.8957]
[1753030165462,0.30546391,3810.5,3809.4,0.96089593]
[1753030165797,0.1312,3810.5,3810.1,2.62460302]
[1753030165974,0.1312,3810.5,3810.2,0.453]
[1753030166300,5.299,3811.1,3810.4,2.62439638]
[1753030166301,0.833,3811.1,3810.4,2.62439638]
[1753030166474,0.1312,3810.7,3810.6,2.62425864]
[1753030168498,0.002,3811.1,3811.0,5.6239832]
[1753030168728,0.002,3811.1,3811.0,6.0935832]
[1753030168883,0.002,3811.1,3811.0,6.2239832]
[1753030170781,0.002,3811.1,3811.0,6.9794832]
[1753030171497,1e-08,3811.1,3811.0,6.8490832]
[1753030173753,1e-08,3811.2,3811.1,5.62391435]
[1753030173886,1e-08,3811.2,3811.1,5.65015349]
[1753030174082,1e-08,3811.2,3811.1,6.11975349]
[1753030174420,1e-08,3811.2,3811.1,7.39901435]
[1753030175830,1e-08,3811.2,3811.1,14.56111435]
[1753030176004,0.002,3813.0,3812.2,2.62315723]
[1753030176213,0.002,3813.0,3812.2,7.1073888]
[1753030176410,0.002,3813.0,3812.2,7.08115723]
[1753030176608,0.002,3813.0,3812.2,7.55075723]
[1753030177116,0.002,3813.0,3812.2,10.55075723]
[1753030178030,0.002,3813.0,3812.2,6.09275723]
[1753030178240,0.002,3813.0,3812.2,10.54975723]
[1753030179494,0.002,3813.0,3812.2,6.09275723]
[1753030179941,0.7907,3812.9,3812.2,5.62315723]
[1753030180117,1.2468,3812.9,3812.2,10.07715723]
[1753030180322,0.002,3813.0,3812.2,2.62315723]
[1753030180520,0.002,3813.0,3812.2,8.3524888]
[1753030180719,0.002,3813.0,3812.2,11.32625723]
[1753030181251,0.002,3813.0,3812.2,6.87225723]
[1753030181411,0.002,3813.0,3812.2,10.98705723]
[1753030181412,0.1324,3813.0,3812.2,10.98705723]
[1753030182353,0.1324,3813.0,3812.2,11.45665723]
[1753030182558,0.1324,3813.0,3812.2,7.00265723]
[1753030183063,0.1324,3813.0,3812.2,11.45465723]
[1753030183264,0.1324,3813.0,3812.2,7.00265723]
[1753030183467,0.1324,3813.0,3812.2,11.45465723]
[1753030183613,0.002,3813.0,3812.2,11.45465723]
[1753030184765,1e-08,3813.5,3813.4,3.40183177]
[1753030185065,1e-08,3813.5,3813.4,10.07333177]
[1753030185269,1e-08,3813.5,3813.4,5.62233177]
[1753030185447,1e-08,3813.5,3813.4,10.07333177]
[1753030185823,1e-08,3813.5,3813.4,5.62233177]
[1753030186024,1e-08,3813.5,3813.4,10.07233177]
[1753030187116,1e-08,3813.5,3813.4,5.62233177]
[1753030187336,1e-08,3813.5,3813.4,7.07133177]
[1753030187939,1e-08,3813.5,3813.4,2.62233177]
[1753030188223,1e-08,3813.5,3813.4,7.07133177]
[1753030188780,1e-08,3813.5,3813.4,10.20173177]
[1753030189161,1e-08,3813.5,3813.4,0.19365601]
[1753030189338,1e-08,3813.5,3813.4,2.62233177]
[1753030190149,1e-08,3813.5,3813.4,5.62233177]
[1753030190448,1e-08,3813.5,3813.4,10.53893177]
[1753030191476,1e-08,3813.9,3813.8,2.62205674]
[1753030191659,1e-08,3813.9,3813.8,10.06805674]
[1753030191974,1e-08,3813.9,3813.8,6.22205674]
[1753030192175,0.82420001,3813.9,3813.8,0.1304]
[1753030192391,0.8242,3813.7,3811.7,0.4696]
[1753030192571,0.4561,3813.6,3812.3,0.19957082]
[1753030192771,0.39024542,3813.5,3812.2,7.445]
[1753030192944,3.07850049,3813.4,3812.6,2.62282191]
[1753030193143,2.62240049,3813.4,3812.7,2.62280951]
[1753030193446,0.4561,3813.3,3812.6,2.62286939]
[1753030193670,0.4561,3813.3,3812.7,2.62279832]
[1753030194073,0.4561,3813.3,3812.4,4.445]
[1753030194279,0.45610001,3813.9,3813.5,2.62225977]
[1753030194441,1e-08,3813.9,3813.5,2.62225977]
[1753030194641,0.4561,3813.8,3813.2,4.444]
[1753030194867,0.4561,3813.8,3813.3,2.62235564]
[1753030195174,0.4561,3813.8,3813.0,3.0]
[1753030195378,0.7903,3813.7,3813.2,3.0]
[1753030195678,0.4561,3813.6,3813.3,2.62240054]
[1753030195840,0.4561,3813.6,3813.5,2.62226301]
[1753030196372,0.7903,3813.7,3813.6,2.62219425]
[1753030196973,1e-08,3813.9,3813.8,2.62205674]
[1753030197745,0.78883944,3814.1,3814.0,2.62191924]
[1753030199545,1.0,3814.3,3814.2,2.62178176]
[1753030200380,1.0,3814.3,3814.1,2.62182702]
[1753030200685,1.0,3814.3,3814.2,2.62178176]
[1753030200986,0.95,3814.3,3814.2,7.06278176]
[1753030201345,0.95,3814.3,3814.2,11.30108176]
[1753030201771,0.95,3814.3,3814.2,5.62178176]
[1753030202057,0.95,3814.3,3813.3,0.7825]
[1753030202395,0.7903,3814.0,3813.5,2.62221455]
[1753030202686,0.95,3814.3,3814.2,2.62178176]
[1753030204481,0.952,3814.3,3814.2,2.62178176]
[1753030204845,1.4088,3814.3,3814.1,4.439]
[1753030205052,1.4088,3814.3,3814.2,2.62178176]
[1753030205053,0.952,3814.3,3814.2,2.62178176]
[1753030206284,0.952,3814.3,3814.2,7.05978176]
[1753030206794,0.952,3814.3,3814.2,8.31428176]
[1753030207188,1e-08,3814.3,3814.2,11.31428176]
[1753030207387,1e-08,3814.3,3814.2,8.31428176]
[1753030207972,1e-08,3814.3,3814.2,8.31328176]
[1753030208669,1e-08,3814.3,3814.2,3.87628176]
[1753030208900,1e-08,3814.3,3814.2,7.85748176]
[1753030209396,1e-08,3814.3,3814.2,7.05778176]
[1753030209699,1e-08,3814.3,3814.2,2.62178176]
[1753030209862,1e-08,3814.3,3814.2,7.05778176]
[1753030210263,0.13040001,3814.3,3814.2,7.05678176]
[1753030210572,0.8196,3814.2,3814.1,2.62180939]
[1753030210790,1.2764,3814.2,3814.1,2.62180939]
[1753030211697,0.1304,3814.1,3813.4,0.1314]
[1753030211885,0.1304,3813.9,3813.5,2.62225808]
[1753030212090,0.4568,3813.8,3813.6,4.434]
[1753030212289,0.4568,3813.8,3813.7,2.62212549]
[1753030213075,0.4568,3813.8,3813.4,0.001]
[1753030213076,4.72,3814.0,3813.8,2.62200202]
[1753030213708,4.72,3814.0,3813.4,0.001]
[1753030213709,0.1304,3813.8,3813.4,0.001]
[1753030213894,0.1304,3813.6,3813.5,4.433]
[1753030214093,0.4568,3813.6,3813.4,0.001]
[1753030214290,0.4568,3813.6,3813.5,2.62225446]
[1753030214466,4.72,3813.8,3813.7,2.62212549]
[1753030215104,1e-08,3814.3,3814.2,2.62178176]
[1753030215303,1e-08,3814.3,3814.2,10.21139957]
[1753030215507,1e-08,3814.3,3814.2,10.64098176]
[1753030215705,1e-08,3814.3,3814.2,11.45718176]
[1753030216084,1e-08,3814.3,3814.2,11.58992695]
[1753030216978,0.4568,3815.9,3814.2,11.58992695]
[1753030216979,1e-08,3815.0,3814.9,2.62130068]
[1753030217177,0.8343,3816.0,3815.9,2.62061374]
[1753030217178,0.01,3816.0,3815.9,2.62061374]
[1753030217520,0.01,3816.0,3815.9,10.05261374]
[1753030217809,0.01,3816.0,3815.9,5.62061374]
[1753030218006,0.01,3816.0,3815.9,10.05261374]
[1753030218166,0.01,3816.0,3815.9,5.75101374]
[1753030218372,0.01,3816.0,3815.9,2.62061374]
[1753030218572,0.01,3816.0,3815.9,7.05161374]
[1753030218805,0.01,3816.0,3815.9,2.62061374]
[1753030218990,0.01,3816.0,3815.9,8.45301374]
[1753030219209,0.04703824,3816.3,3816.2,2.62040773]
[1753030219510,0.04703824,3816.3,3816.2,7.05040773]
[1753030220010,0.17743824,3816.3,3816.0,2.62050708]
[1753030220324,0.04703824,3816.3,3816.2,6.43020773]
[1753030220473,0.04703824,3816.3,3816.2,6.56060773]
[1753030220673,0.04703824,3816.3,3816.2,11.44540773]
[1753030221283,0.04703824,3816.3,3816.2,2.75080773]
[1753030221487,0.1304,3816.2,3815.7,4.429]
[1753030221685,0.4568,3816.1,3815.4,0.1304]
[1753030221906,0.4568,3816.1,3815.3,2.62097338]
[1753030221907,0.1304,3815.8,3815.3,2.62097338]
[1753030222083,0.4568,3815.7,3815.4,2.62095245]
[1753030222408,0.8105,3816.0,3815.9,2.62061374]
[1753030222616,0.1304,3816.2,3816.0,2.6204936]
[1753030222773,0.1304,3816.2,3816.1,2.6204764]
[1753030222978,0.04703824,3816.3,3816.2,2.62040773]
[1753030223175,0.04703824,3816.3,3816.1,2.7508764]
[1753030223176,0.04703824,3816.3,3816.0,4.428]
[1753030223376,0.04703824,3816.3,3816.2,2.62040773]
[1753030223575,0.04703824,3816.3,3816.2,2.75080773]
[1753030223850,0.04703824,3816.3,3816.2,4.01640773]
[1753030223982,0.04703824,3816.3,3816.2,7.01640773]
[1753030224908,0.00745081,3816.7,3816.6,2.6201331]
[1753030225116,0.00745081,3816.7,3816.6,7.0461331]
[1753030225309,0.00745081,3816.7,3816.6,7.6323331]
[1753030225810,0.00745081,3816.7,3816.6,10.6323331]
[1753030226176,1e-08,3816.7,3816.6,11.3860331]
[1753030226376,1e-08,3817.1,3817.0,2.61985852]
[1753030226629,1e-08,3817.1,3817.0,6.87307385]
[1753030226789,1e-08,3817.1,3817.0,11.38575852]
[1753030226983,1e-08,3817.1,3817.0,7.32887385]
[1753030227312,1e-08,3817.1,3817.0,11.25435852]
[1753030227730,1e-08,3817.1,3817.0,11.62347385]
[1753030228026,1e-08,3817.1,3817.0,11.9652802]
[1753030228229,0.08139004,3819.7,3817.0,7.69873907]
[1753030228540,0.5,3820.0,3819.3,2.61822979]
[1753030228688,0.4448,3819.9,3818.2,0.7537]
[1753030228889,0.7824,3819.8,3818.1,0.02619103]
[1753030229232,3.5,3820.0,3816.8,0.8013]
[1753030229233,3.0,3819.4,3816.8,0.8013]
[1753030229394,2.61911606,3818.1,3816.8,0.82749995]
[1753030229593,0.4448,3818.1,3816.8,0.8013]
[1753030229933,0.8115,3818.9,3816.8,0.8013]
[1753030229934,0.4448,3818.7,3817.4,2.61955963]
[1753030230132,2.61924175,3817.9,3816.9,0.02619927]
[1753030230437,0.26192417,3817.8,3817.0,2.61982788]
[1753030230592,0.26192417,3817.8,3816.8,1.00064793]
[1753030230931,0.4448,3818.3,3816.9,0.02619927]
[1753030231307,1.2563,3818.9,3817.0,0.4321]
[1753030231635,0.9448,3820.0,3818.4,0.8013]
[1753030231813,0.5,3820.0,3818.6,0.55]
[1753030231998,0.5,3820.0,3818.9,3.0]
[1753030232198,0.5,3820.0,3819.1,0.8013]
[1753030232499,0.5,3820.0,3819.9,5.61786957]
[1753030232701,0.5,3820.0,3819.9,6.85126957]
[1753030233392,0.00823284,3820.8,3820.7,2.61732143]
[1753030233872,0.00823284,3820.8,3820.7,6.04942143]
[1753030234369,0.8201,3823.6,3821.9,0.7565]
[1753030234493,0.8201,3823.6,3822.0,0.02616431]
[1753030234696,4.509,3822.8,3821.3,0.7565]
[1753030234920,0.8201,3822.6,3820.8,0.7565]
[1753030235122,0.4448,3822.5,3820.8,0.7565]
[1753030235327,2.61636273,3822.1,3820.1,0.7565]
[1753030235507,2.6167177,3821.6,3820.6,2.61732581]
[1753030235833,4.9568,3821.5,3820.1,3.0]
[1753030236031,4.9568,3821.5,3819.6,1.38557068]
[1753030236032,4.512,3821.5,3819.6,1.38557068]
[1753030236330,2.61732077,3820.8,3819.2,0.02618349]
[1753030236536,0.8201,3820.6,3819.9,2.61780646]
[1753030236731,0.8201,3820.6,3818.6,0.7565]
[1753030236933,0.8201,3820.6,3818.7,0.02618692]
[1753030237149,4.9568,3820.5,3818.7,0.02618692]
[1753030237443,2.61767003,3820.2,3818.5,0.02618829]
[1753030237624,0.1304,3819.5,3818.8,0.1304]
[1753030237938,0.1304,3819.5,3819.1,2.61835247]
[1753030238103,4.9578,3819.4,3818.8,0.1304]
[1753030238298,0.1304,3819.5,3818.8,0.1304]
[1753030238499,4.51,3819.5,3819.1,0.1304]
[1753030238699,4.51,3819.5,3818.2,0.19234491]
[1753030238700,4.97404,3819.5,3819.0,2.6184848]
[1753030238906,4.97404,3819.5,3818.3,0.02618966]
[1753030238907,0.46404,3819.5,3819.4,2.61821228]
[1753030239243,0.8201,3820.6,3818.8,3.0]
[1753030239440,4.518,3820.5,3819.1,3.0]
[1753030239741,0.8201,3820.6,3819.8,2.61787113]
[1753030239742,4.519,3820.4,3819.8,2.61787113]
[1753030239927,0.8201,3820.6,3819.8,2.61792041]
[1753030240129,4.518,3820.5,3819.9,2.61784389]
[1753030240336,4.26872711,3820.4,3819.5,2.61808425]
[1753030240506,4.516,3820.3,3819.6,2.61804644]
[1753030240706,4.26872711,3820.4,3819.5,2.61813567]
[1753030240927,1.65119,3820.4,3818.9,0.02618555]
[1753030241129,2.61766399,3820.2,3819.0,2.6184411]
[1753030241335,1.20639,3820.4,3818.3,0.02618966]
[1753030241336,0.7949,3819.8,3818.3,0.02618966]
[1753030241517,4.512,3819.7,3818.9,2.61855194]
[1753030241847,0.7949,3819.8,3819.0,2.61844169]
[1753030242034,4.511,3819.6,3818.4,2.61886283]
[1753030242342,2.61821228,3819.4,3818.6,2.61875983]
[1753030242545,2.6184162,3819.2,3818.3,2.61895468]
[1753030242743,0.015,3818.9,3818.4,2.61888856]
[1753030242942,4.508,3818.8,3818.4,2.61888856]
[1753030243123,4.508,3818.8,3817.6,1.1952]
[1753030243330,1.2397,3818.7,3818.1,2.61906256]
[1753030243511,1.81597,3818.7,3817.4,0.19969879]
[1753030243713,2.6187608,3818.6,3817.7,2.61937203]
[1753030244019,7.12483205,3818.5,3817.5,2.61948673]
[1753030244226,0.818,3818.1,3816.1,1.2654]
[1753030244410,0.4448,3818.0,3816.2,0.45830407]
[1753030244608,0.4448,3818.0,3816.4,2.62027041]
[1753030244806,4.505,3817.9,3817.3,2.61958819]
[1753030245044,4.505,3817.9,3816.7,2.62003841]
[1753030245243,0.4448,3817.8,3816.1,0.8333]
[1753030245411,2.61950277,3817.6,3816.8,2.61999552]
[1753030245611,1.01886156,3817.6,3816.1,0.85950476]
[1753030245813,0.818,3818.8,3816.3,0.8333]
[1753030246035,4.9508,3818.7,3816.5,3.0]
[1753030246233,0.818,3818.8,3816.6,0.02620133]
[1753030246411,0.4448,3818.6,3816.5,0.02620201]
[1753030246614,2.61911843,3818.1,3817.1,2.61972628]
[1753030246848,0.818,3817.9,3815.9,2.62055042]
[1753030247023,0.4448,3817.8,3816.7,2.62000913]
[1753030247225,3.06411027,3817.8,3816.6,2.62011685]
[1753030247429,2.61958231,3817.5,3816.5,2.62014022]
[1753030247631,4.511,3817.4,3816.0,0.02620545]
[1753030247867,2.61986335,3817.0,3815.9,2.64675804]
[1753030248017,0.818,3816.9,3816.5,0.001]
[1753030248212,4.509,3816.9,3816.6,2.6201331]
[1753030248431,0.4448,3816.8,3816.5,0.001]
[1753030248663,4.509,3816.7,3816.5,0.001]
[1753030248857,5.82238,3816.6,3816.5,0.001]
[1753030249077,8.8873131,3816.6,3816.5,0.001]
[1753030249974,1.2628,3816.6,3816.5,0.001]
[1753030250188,5.7708,3816.6,3816.5,0.001]
[1753030250390,5.326,3816.6,3816.5,0.001]
[1753030250563,0.818,3816.6,3816.5,0.001]
[1753030250764,5.4554,3816.6,3816.5,0.001]
[1753030250993,5.4554,3816.6,3816.5,2.62120175]
[1753030251160,5.9002,3816.6,3816.5,0.001]
[1753030251599,6.75221922,3816.6,3816.5,0.001]
[1753030252094,6.75321922,3816.6,3816.5,0.001]
[1753030252475,2.24521922,3816.6,3816.5,0.001]
[1753030252696,5.8972,3816.6,3816.5,0.001]
[1753030252995,8.5173331,3816.6,3816.5,0.001]
[1753030253297,1.3932,3816.6,3816.5,0.001]
[1753030253601,8.5143331,3816.6,3816.5,0.001]
[1753030253758,1.3932,3816.6,3816.5,0.001]
[1753030253962,5.8922,3816.6,3816.5,0.001]
[1753030254365,1.3932,3816.6,3816.5,0.001]
[1753030254707,5.8902,3816.6,3816.5,0.001]
[1753030255003,8.5103331,3816.6,3816.5,0.001]
[1753030255502,7.63053539,3816.6,3816.5,0.001]
[1753030255803,10.25066849,3816.6,3816.5,0.001]
[1753030256005,5.75466849,3816.6,3816.5,0.001]
[1753030256201,7.86741469,3816.6,3816.5,0.001]
[1753030256409,10.24466849,3816.6,3816.5,0.001]
[1753030256698,4.86017264,3816.6,3816.5,2.62120175]
[1753030257403,0.37317264,3816.6,3816.5,2.62120175]
[1753030257600,4.6244,3816.6,3816.5,0.001]
[1753030257807,7.6893331,3816.6,3816.5,0.001]
[1753030257975,5.83813331,3816.6,3816.5,0.001]
[1753030258171,8.45826641,3816.6,3816.5,0.001]
[1753030258604,1.34413331,3816.6,3816.5,0.001]
[1753030258779,4.6204,3816.6,3816.5,0.001]
[1753030259380,7.6732331,3816.6,3816.5,0.001]
[1753030260775,7.6652331,3816.6,3816.5,0.001]
[1753030261471,8.9966331,3816.6,3816.5,0.001]
[1753030261676,10.15829917,3816.6,3816.5,0.001]
[1753030261988,0.7814,3815.0,3814.1,0.1314]
[1753030262185,2.757,3816.2,3814.1,0.001]
[1753030262186,3.40318176,3814.2,3814.1,0.001]
[1753030262385,11.45218176,3814.2,3814.1,1e-08]
[1753030262586,2.62281322,3812.7,3812.6,0.001]
[1753030262787,8.16449454,3812.7,3812.6,0.001]
[1753030263010,8.16449454,3812.7,3812.6,1e-08]
[1753030263011,16.13501193,3812.7,3812.6,1e-08]
[1753030263216,2.62336367,3811.9,3810.5,0.7944]
[1753030263398,2.62336367,3811.9,3810.1,2.62454169]
[1753030263399,3.95476367,3811.9,3810.1,2.62454169]
[1753030263599,1.2141,3811.9,3810.2,0.22110261]
[1753030263805,5.7181,3811.9,3811.2,2.62378111]
[1753030263978,6.55423873,3811.9,3810.1,0.432]
[1753030264176,0.4327,3812.6,3810.6,0.432]
[1753030264378,5.3067,3812.5,3811.5,2.62357888]